bitfinex/quotes_SOLUSD_20260302
["timestamp","ask_amount","ask_price","bid_price","bid_amount"]
[1772472052800,11.33247206,88.242,88.205,3.51836585]
[1772472053015,3.43933299,88.243,88.205,3.51836585]
[1772472053409,14.77175653,88.243,88.205,3.51836585]
[1772472054320,8.21956064,88.25,88.205,3.51836585]
[1772472054523,3.53933299,88.28,88.215,0.28432314]
[1772472054701,14.86702484,88.28,88.228,3.51836585]
[1772472055117,0.1,88.28,88.23,3.80268899]
[1772472055314,14.86704225,88.28,88.232,3.51836585]
[1772472055621,3.43933299,88.269,88.215,3.51836585]
[1772472056123,3.43933299,88.269,88.211,1.13364546]
[1772472056124,3.43933299,88.269,88.219,3.51836585]
[1772472056527,11.329134,88.268,88.22,39.6735434]
[1772472056827,3.43933299,88.269,88.229,3.51836585]
[1772472057619,0.1,88.28,88.23,0.28432314]
[1772472057824,0.1,88.28,88.239,3.51836585]
[1772472057825,3.53933299,88.28,88.239,3.51836585]
[1772472058825,3.53933299,88.28,88.238,0.28432314]
[1772472058826,3.53933299,88.28,88.241,3.51836585]
[1772472059019,3.53933299,88.28,88.238,0.28432314]
[1772472059020,3.43933299,88.269,88.229,28.33510335]
[1772472059242,8.21956064,88.26,88.229,28.33510335]
[1772472059931,3.43933299,88.269,88.229,31.8534692]
[1772472060105,11.32772233,88.279,88.232,3.51836585]
[1772472060106,3.43933299,88.279,88.232,3.51836585]
[1772472060305,0.1,88.28,88.238,3.51836585]
[1772472060934,3.43933299,88.279,88.24,3.51836585]
[1772472061239,45.39021309,88.32,88.249,3.51836585]
[1772472061240,8.31956064,88.32,88.249,3.51836585]
[1772472061542,8.31956064,88.32,88.241,1.13326004]
[1772472061543,0.1,88.32,88.279,3.51836585]
[1772472061835,11.31849101,88.351,88.299,3.51836585]
[1772472062023,3.43933299,88.349,88.299,3.51836585]
[1772472062328,3.43933299,88.359,88.299,3.51836585]
[1772472062732,0.1,88.36,88.311,3.51836585]
[1772472062934,3.43933299,88.383,88.316,0.28432314]
[1772472063136,11.31368924,88.389,88.329,3.51836585]
[1772472063340,3.43933299,88.388,88.339,3.51836585]
[1772472063546,14.7503986,88.409,88.343,3.51836585]
[1772472063730,14.7503986,88.409,88.349,3.51836585]
[1772472063936,14.7503986,88.409,88.359,3.51836585]
[1772472063937,3.43933299,88.409,88.359,3.51836585]
[1772472064122,11.30987349,88.419,88.369,3.51836585]
[1772472064318,11.30987349,88.419,88.34,3.69383402]
[1772472064319,3.43933299,88.434,88.379,3.51836585]
[1772472064652,11.65889363,88.43,88.379,3.51836585]
[1772472064951,5.9017178,88.462,88.354,3.51836585]
[1772472064952,3.43933299,88.399,88.354,3.51836585]
[1772472065722,11.65889363,88.41,88.354,3.51836585]
[1772472066043,3.43933299,88.409,88.354,3.51836585]
[1772472066249,3.43933299,88.418,88.368,3.51836585]
[1772472066450,11.30978635,88.419,88.368,3.51836585]
[1772472066939,11.30978635,88.419,88.344,3.69383402]
[1772472066940,3.43933299,88.433,88.379,3.51836585]
[1772472067444,8.21956064,88.41,88.379,3.51836585]
[1772472067635,3.43933299,88.409,88.366,3.51836585]
[1772472067831,3.43933299,88.409,88.367,11.31644165]
[1772472068148,3.43933299,88.419,88.368,3.51836585]
[1772472068358,11.65889363,88.41,88.368,3.51836585]
[1772472068529,3.43933299,88.41,88.368,3.51836585]
[1772472068830,11.31106561,88.409,88.369,14.83455139]
[1772472069033,14.7503986,88.409,88.369,14.83455139]
[1772472069449,8.21956064,88.38,88.344,3.51836585]
[1772472069652,11.65889363,88.38,88.344,3.51836585]
[1772472070229,3.43933299,88.404,88.344,3.51836585]
[1772472070444,3.43933299,88.404,88.347,0.28432314]
[1772472070667,3.43933299,88.416,88.358,3.51836585]
[1772472070839,3.43933299,88.429,88.378,3.51836585]
[1772472071042,3.43933299,88.419,88.378,3.51836585]
[1772472071451,8.21956064,88.41,88.369,11.31618554]
[1772472071766,8.21956064,88.41,88.337,15.43041431]
[1772472071767,3.43933299,88.379,88.332,3.51836585]
[1772472071939,3.43933299,88.389,88.332,3.51836585]
[1772472072135,8.21956064,88.38,88.332,3.51836585]
[1772472072354,3.43933299,88.389,88.336,3.51836585]
[1772472072859,3.43933299,88.389,88.338,3.51836585]
[1772472073063,167.1,88.423,88.34,3.51836585]
[1772472073064,3.72365613,88.422,88.34,3.51836585]
[1772472073258,3.72365613,88.422,88.339,39.62009983]
[1772472073259,8.21956064,88.4,88.348,3.51836585]
[1772472073447,8.21956064,88.4,88.356,3.51836585]
[1772472073762,8.21956064,88.38,88.34,3.51836585]
[1772472074060,8.21956064,88.39,88.34,3.51836585]
[1772472074241,3.43933299,88.392,88.34,3.51836585]
[1772472074442,8.21956064,88.4,88.346,3.51836585]
[1772472074966,14.75112549,88.404,88.348,0.14216157]
[1772472075159,14.75112549,88.404,88.355,3.36499336]
[1772472075482,3.46909481,88.421,88.359,3.36499336]
[1772472075772,11.30806532,88.433,88.367,3.36499336]
[1772472076065,3.46909481,88.445,88.374,3.36499336]
[1772472076251,3.46909481,88.445,88.378,3.36499336]
[1772472076443,11.30541848,88.454,88.388,3.36499336]
[1772472076645,11.30541848,88.454,88.405,0.14216157]
[1772472076861,14.77384588,88.459,88.406,3.36499336]
[1772472077159,8.21956064,88.44,88.408,3.36499336]
[1772472077362,8.21956064,88.44,88.407,11.3113215]
[1772472077363,3.38575388,88.439,88.407,11.3113215]
[1772472077661,3.38575388,88.439,88.401,11.31196836]
[1772472078478,3.38575388,88.439,88.402,3.46414529]
[1772472079071,3.38575388,88.448,88.403,11.3118333]
[1772472080965,3.38575388,88.439,88.403,11.3118333]
[1772472081164,3.38575388,88.429,88.386,11.314009]
[1772472081380,3.38575388,88.419,88.381,11.31453395]
[1772472081869,3.38575388,88.409,88.374,11.31543667]
[1772472082073,8.21956064,88.41,88.374,14.77958196]
[1772472082282,8.21956064,88.41,88.375,3.46414529]
[1772472082875,11.60531452,88.41,88.375,3.46414529]
[1772472083082,3.38575388,88.409,88.375,3.46414529]
[1772472083274,3.38575388,88.407,88.365,3.46414529]
[1772472083876,3.38575388,88.425,88.365,3.46414529]
[1772472084076,3.38575388,88.419,88.365,3.46414529]
[1772472084791,3.38575388,88.409,88.356,3.46414529]
[1772472085384,3.38575388,88.407,88.365,3.46414529]
[1772472086063,11.31059371,88.413,88.365,3.46414529]
[1772472086766,3.38575388,88.409,88.365,3.46414529]
[1772472086963,8.21956064,88.41,88.323,3.46414529]
[1772472086964,3.38575388,88.369,88.323,3.46414529]
[1772472087383,14.70206747,88.368,88.327,7.15797931]
[1772472087582,14.70206747,88.368,88.328,3.46414529]
[1772472087583,3.38575388,88.368,88.328,3.46414529]
[1772472087772,11.31578766,88.373,88.328,3.46414529]
[1772472087970,14.70154154,88.373,88.328,3.46414529]
[1772472088275,3.38575388,88.369,88.328,3.46414529]
[1772472088578,3.38575388,88.369,88.275,45.31263537]
[1772472088579,3.38575388,88.359,88.321,11.3223229]
[1772472089087,8.21956064,88.37,88.322,3.46414529]
[1772472089293,11.31631359,88.368,88.323,11.32207918]
[1772472089480,8.21956064,88.38,88.326,3.46414529]
[1772472089683,3.38575388,88.378,88.326,3.46414529]
[1772472092372,11.31516118,88.377,88.327,39.62548257]
[1772472092597,11.31516118,88.377,88.328,3.46414529]
[1772472093297,3.38575388,88.376,88.328,3.46414529]
[1772472093680,3.38575388,88.369,88.328,3.46414529]
[1772472094296,11.31516118,88.377,88.328,3.46414529]
[1772472094496,11.60531452,88.38,88.33,3.46414529]
[1772472095002,3.38575388,88.379,88.33,3.46414529]
[1772472095183,3.38575388,88.369,88.33,3.46414529]
[1772472095497,3.38575388,88.359,88.329,39.62458535]
[1772472095683,11.60531452,88.37,88.33,3.46414529]
[1772472095883,3.38575388,88.369,88.33,3.46414529]
[1772472096479,11.31631359,88.368,88.331,11.32105376]
[1772472096693,11.31631359,88.368,88.332,3.46414529]
[1772472097502,3.38575388,88.375,88.332,3.46414529]
[1772472097907,3.38575388,88.411,88.345,0.28432314]
[1772472098199,3.38575388,88.411,88.366,3.46414529]
[1772472098410,11.30850739,88.429,88.376,3.46414529]
[1772472098581,3.38575388,88.428,88.378,3.46414529]
[1772472098781,3.38575388,88.419,88.378,3.46414529]
[1772472099092,3.38575388,88.409,88.377,11.31516118]
[1772472099908,3.38575388,88.399,88.356,11.31785051]
[1772472100404,3.38575388,88.412,88.362,0.28432314]
[1772472100699,11.30876316,88.427,88.377,3.46414529]
[1772472100897,3.38575388,88.426,88.377,3.46414529]
[1772472101107,3.38575388,88.409,88.368,11.31620735]
[1772472101400,3.38575388,88.409,88.369,3.46414529]
[1772472102100,3.38575388,88.409,88.368,11.31620735]
[1772472102101,14.69406846,88.431,88.377,3.46414529]
[1772472102291,3.38575388,88.429,88.377,3.46414529]
[1772472102686,3.38575388,88.427,88.379,3.46414529]
[1772472104408,8.20230842,88.45,88.397,3.46414529]
[1772472104603,3.38575388,88.439,88.397,3.46414529]
[1772472104793,3.38575388,88.429,88.384,3.46414529]
[1772472105610,3.38575388,88.419,88.38,11.31477709]
[1772472106211,3.38575388,88.439,88.386,0.28432314]
[1772472106415,3.38575388,88.429,88.387,3.46414529]
[1772472108710,14.69594455,88.428,88.388,39.59813548]
[1772472108911,3.38730928,88.428,88.379,3.5679017]
[1772472109118,11.30851046,88.429,88.379,3.5679017]
[1772472109119,3.38730928,88.419,88.379,3.5679017]
[1772472109799,3.38730928,88.409,88.37,3.5679017]
[1772472110008,3.38730928,88.409,88.369,11.31618554]
[1772472110398,3.38730928,88.399,88.369,11.31618554]
[1772472111409,3.38730928,88.409,88.362,3.5679017]
[1772472111615,3.38730928,88.42,88.366,0.28432314]
[1772472111810,3.38730928,88.42,88.377,3.5679017]
[1772472113196,3.38730928,88.419,88.377,3.5679017]
[1772472113814,3.38730928,88.419,88.364,3.69383402]
[1772472113815,3.38730928,88.409,88.378,39.60261603]
[1772472114004,3.38730928,88.409,88.378,11.31503315]
[1772472114518,3.38730928,88.419,88.379,3.5679017]
[1772472114706,11.30991427,88.418,88.379,3.5679017]
[1772472115513,3.38730928,88.429,88.379,3.5679017]
[1772472115716,3.38730928,88.429,88.387,3.5679017]
[1772472116599,11.30748442,88.437,88.387,3.5679017]
[1772472116813,3.38730928,88.436,88.387,3.5679017]
[1772472117017,3.38730928,88.429,88.387,3.5679017]
[1772472117596,3.38730928,88.427,88.388,43.16603718]
[1772472117813,3.38730928,88.427,88.389,3.5679017]
[1772472118593,11.30889105,88.426,88.391,3.5679017]
[1772472119116,3.38730928,88.427,88.391,3.5679017]
[1772472119803,3.38730928,88.435,88.391,3.5679017]
[1772472120625,8.20230842,88.45,88.399,3.5679017]
[1772472121006,11.40455092,88.46,88.416,0.28432314]
[1772472121216,8.20230842,88.45,88.404,3.5679017]
[1772472121497,11.40455092,88.46,88.404,3.5679017]
[1772472121498,8.20230842,88.44,88.404,3.5679017]
[1772472121903,8.20230842,88.43,88.398,39.59365596]
[1772472122101,8.20230842,88.43,88.398,43.16155766]
[1772472122321,8.20230842,88.43,88.388,28.28418241]
[1772472122528,8.20230842,88.42,88.375,3.5679017]
[1772472122848,1.31640299,88.419,88.377,3.5679017]
[1772472123529,12.62629249,88.419,88.377,3.5679017]
[1772472124516,1.31650427,88.409,88.376,11.31528921]
[1772472124832,8.20230842,88.4,88.367,11.31644165]
[1772472125008,1.31650427,88.399,88.367,11.31644165]
[1772472126121,1.31655404,88.389,88.357,11.31772242]
[1772472126513,1.31771022,88.399,88.358,3.5679017]
[1772472126713,1.31771022,88.389,88.33,3.85222484]
[1772472127035,1.31771022,88.389,88.33,3.5679017]
[1772472127234,1.31771022,88.389,88.333,0.28432314]
[1772472127539,1.31771022,88.389,88.305,1.1324387]
[1772472127540,1.31885312,88.339,88.282,3.58866021]
[1772472127719,8.20230842,88.33,88.284,3.58866021]
[1772472128116,8.20230842,88.33,88.283,39.6452318]
[1772472128117,8.20230842,88.32,88.286,3.58866021]
[1772472128933,8.20230842,88.32,88.287,39.6434356]
[1772472129240,11.31170535,88.404,88.291,3.58866021]
[1772472129442,8.20230842,88.37,88.298,3.58866021]
[1772472129615,8.20230842,88.37,88.312,3.58866021]
[1772472129817,8.20230842,88.36,88.316,3.58866021]
[1772472130127,8.20230842,88.37,88.316,3.58866021]
[1772472130518,11.31618554,88.369,88.318,3.58866021]
[1772472130727,11.59654033,88.4,88.326,3.58866021]
[1772472131034,11.59654033,88.4,88.317,141.53560467]
[1772472131035,8.20230842,88.36,88.318,3.58866021]
[1772472131232,8.20230842,88.35,88.318,3.58866021]
[1772472131432,3.69383402,88.388,88.307,3.58866021]
[1772472131433,8.20230842,88.34,88.307,3.58866021]
[1772472131637,8.20230842,88.34,88.272,39.65017218]
[1772472131638,8.20230842,88.32,88.272,39.65017218]
[1772472131849,3.69383402,88.357,88.272,39.65017218]
[1772472131850,8.20230842,88.31,88.273,3.58866021]
[1772472132427,8.20230842,88.32,88.275,3.58866021]
[1772472132645,8.20230842,88.33,88.278,3.58866021]
[1772472132828,8.20230842,88.33,88.283,0.28432314]
[1772472133027,8.20230842,88.34,88.286,3.58866021]
[1772472133228,8.20230842,88.33,88.286,3.58866021]
[1772472135055,11.3213101,88.329,88.288,3.58866021]
[1772472135432,8.20230842,88.33,88.288,3.58866021]
[1772472136653,11.3191417,88.346,88.296,3.58866021]
[1772472136838,11.3213101,88.329,88.297,11.32541309]
[1772472137646,8.20230842,88.31,88.287,11.32669588]
[1772472137849,8.20230842,88.32,88.287,11.32669588]
[1772472139951,8.20230842,88.3,88.256,31.91528871]
[1772472140155,8.20230842,88.3,88.271,11.32874896]
[1772472140347,8.20230842,88.29,88.271,11.32874896]
[1772472140556,8.20230842,88.29,88.266,11.32935376]
[1772472141263,8.20230842,88.28,88.233,3.58866021]
[1772472141440,8.20230842,88.27,88.244,11.33215606]
[1772472141766,8.20230842,88.28,88.245,3.58866021]
[1772472141938,8.20230842,88.27,88.247,3.58866021]
[1772472142139,8.20230842,88.26,88.23,0.2]
[1772472142447,8.20230842,88.26,88.237,11.33310235]
[1772472142650,8.20230842,88.26,88.24,11.53261931]
[1772472142956,8.20230842,88.26,88.24,0.2]
[1772472143156,8.20230842,88.26,88.24,11.53260339]
[1772472143366,8.20230842,88.27,88.24,11.53260339]
[1772472143540,8.20230842,88.26,88.24,11.53260339]
[1772472143962,8.20230842,88.26,88.24,0.2]
[1772472144354,11.33028926,88.259,88.24,0.2]
[1772472145757,8.20230842,88.26,88.24,0.2]
[1772472145955,8.20230842,88.27,88.241,11.33260049]
[1772472146343,8.20230842,88.26,88.241,11.33260049]
[1772472146753,8.20230842,88.26,88.24,0.2]
[1772472147068,8.20230842,88.26,88.24,11.53268438]
[1772472149464,8.20230842,88.26,88.241,3.58866021]
[1772472149656,0.02569106,88.306,88.241,3.58866021]
[1772472149855,8.20230842,88.28,88.241,3.58866021]
[1772472150261,167.1,88.354,88.252,3.58866021]
[1772472150262,8.20230842,88.32,88.252,3.58866021]
[1772472150565,0.02663537,88.329,88.266,3.58866021]
[1772472150751,11.32002852,88.339,88.276,3.58866021]
[1772472150957,8.20230842,88.32,88.276,3.58866021]
[1772472151263,8.20230842,88.32,88.248,3.69383402]
[1772472151264,8.20230842,88.31,88.256,3.58866021]
[1772472151456,11.32332601,88.314,88.256,3.58866021]
[1772472151659,8.20230842,88.29,88.256,3.58866021]
[1772472152166,8.20230842,88.3,88.256,3.58866021]
[1772472153449,8.20230842,88.29,88.258,3.58866021]
[1772472153655,8.20230842,88.3,88.258,3.58866021]
[1772472154052,8.20230842,88.29,88.258,3.58866021]
[1772472154266,8.20230842,88.28,88.257,11.33054601]
[1772472155069,8.20230842,88.29,88.257,14.91920622]
[1772472155274,0.28432314,88.311,88.241,11.33260049]
[1772472155275,8.20230842,88.27,88.241,11.33260049]
[1772472155568,19.53118606,88.27,88.241,11.33260049]
[1772472155780,8.20230842,88.27,88.241,11.33260049]
[1772472156152,8.20230842,88.26,88.241,11.33260049]
[1772472156351,0.0311967,88.27,88.241,11.33260049]
[1772472156352,8.23350512,88.27,88.241,11.33260049]
[1772472156576,8.25222222,88.27,88.241,11.33260049]
[1772472156776,8.22102552,88.27,88.241,11.33260049]
[1772472157259,8.22102552,88.27,88.24,0.2]
[1772472157260,0.03294872,88.269,88.24,0.2]
[1772472157576,8.22102552,88.26,88.24,11.53269918]
[1772472157774,11.33028926,88.259,88.24,0.2]
[1772472158165,8.22102552,88.26,88.24,11.53272424]
[1772472158369,8.22102552,88.27,88.24,11.53272424]
[1772472158572,11.32900565,88.269,88.24,11.53272424]
[1772472160582,8.22102552,88.26,88.24,11.53272424]
[1772472160757,8.22102552,88.27,88.24,11.53272424]
[1772472160961,8.22102552,88.27,88.24,15.12138445]
[1772472161159,8.22102552,88.29,88.241,3.58866021]
[1772472162561,11.3264393,88.289,88.242,39.66365222]
[1772472162780,8.22102552,88.3,88.247,3.58866021]
[1772472163375,8.22102552,88.31,88.257,3.58866021]
[1772472164078,8.22102552,88.31,88.242,141.6559008]
[1772472164079,8.22102552,88.33,88.271,3.58866021]
[1772472164404,8.22102552,88.34,88.287,3.58866021]
[1772472164677,8.22102552,88.34,88.289,3.58866021]
[1772472165664,11.32002852,88.339,88.289,3.58866021]
[1772472165863,11.31943487,88.344,88.289,3.58866021]
[1772472166077,19.53973876,88.35,88.297,3.58866021]
[1772472166379,11.31746624,88.359,88.307,3.58866021]
[1772472166573,11.31746624,88.359,88.289,3.58866021]
[1772472166574,8.22102552,88.33,88.289,3.58866021]
[1772472166766,19.54230875,88.33,88.291,3.58866021]
[1772472166963,8.22102552,88.34,88.291,3.58866021]
[1772472168501,8.22102552,88.32,88.29,11.32631102]
[1772472168700,39.61561534,88.349,88.264,3.58866021]
[1772472168701,8.22102552,88.3,88.264,3.58866021]
[1772472168880,8.22102552,88.29,88.264,3.58866021]
[1772472169083,0.0426518,88.301,88.264,3.58866021]
[1772472169084,8.22102552,88.3,88.264,3.58866021]
[1772472169910,8.22102552,88.29,88.265,11.32951906]
[1772472171486,8.22102552,88.29,88.176,12.53112312]
[1772472171487,8.22102552,88.28,88.245,3.58866021]
[1772472171685,8.22102552,88.28,88.246,3.58866021]
[1772472171884,8.22102552,88.29,88.248,3.58866021]
[1772472172781,0.04559854,88.324,88.256,3.58866021]
[1772472173091,8.22102552,88.31,88.256,3.58866021]
[1772472173285,8.22102552,88.3,88.256,3.58866021]
[1772472174986,19.5461173,88.3,88.258,3.58866021]
[1772472175198,8.22102552,88.29,88.258,3.58866021]
[1772472176295,8.22102552,88.29,88.26,3.58866021]
[1772472178000,0.04909554,88.314,88.26,3.58866021]
[1772472178205,11.32387412,88.309,88.262,3.58866021]
[1772472178612,8.22102552,88.31,88.262,3.58866021]
[1772472178794,8.22102552,88.33,88.268,3.87298335]
[1772472179392,8.22102552,88.32,88.268,3.87298335]
[1772472179696,8.22102552,88.33,88.268,3.87298335]
[1772472180015,0.05043876,88.337,88.268,3.87298335]
[1772472180215,8.22102552,88.33,88.276,0.14216157]
[1772472180390,8.22102552,88.33,88.277,3.58866021]
[1772472181291,0.05175129,88.328,88.279,3.58866021]
[1772472181896,8.22102552,88.34,88.287,3.58866021]
[1772472183301,11.32002852,88.339,88.289,3.58866021]
[1772472184010,19.53969256,88.35,88.297,3.58866021]
[1772472184512,0.0536641,88.339,88.297,3.58866021]
[1772472185097,0.0536641,88.338,88.286,3.58866021]
[1772472185291,0.05428711,88.318,88.278,11.32785065]
[1772472185491,0.05428711,88.318,88.279,3.58866021]
[1772472185695,8.22102552,88.31,88.279,3.58866021]
[1772472186192,39.62907187,88.319,88.279,3.58866021]
[1772472186193,11.32259196,88.319,88.279,3.58866021]
[1772472186599,11.32259196,88.319,88.278,39.64747728]
[1772472186600,0.05490297,88.346,88.287,3.58866021]
[1772472186800,11.31789985,88.356,88.297,3.58866021]
[1772472187710,11.31789985,88.356,88.299,3.58866021]
[1772472187711,39.61252613,88.356,88.299,3.58866021]
[1772472188217,0.05551175,88.349,88.299,3.58866021]
[1772472188407,39.61252613,88.356,88.256,3.58866021]
[1772472188408,0.05611354,88.319,88.256,3.58866021]
[1772472188610,39.61252613,88.356,88.266,3.58866021]
[1772472188611,8.22102552,88.33,88.266,3.58866021]
[1772472188805,8.22102552,88.33,88.276,3.58866021]
[1772472189316,8.22102552,88.34,88.286,3.58866021]
[1772472189505,8.22102552,88.33,88.286,3.58866021]
[1772472189813,28.30011557,88.339,88.288,3.58866021]
[1772472190215,39.62054834,88.338,88.288,3.58866021]
[1772472190400,11.32015667,88.338,88.288,3.58866021]
[1772472193423,11.32015667,88.338,88.29,3.58866021]
[1772472193636,8.22102552,88.33,88.29,3.58866021]
[1772472193918,0.05902039,88.329,88.289,11.3264393]
[1772472194121,8.22102552,88.32,88.279,3.58866021]
[1772472194625,11.32015667,88.338,88.279,3.58866021]
[1772472194930,11.32015667,88.338,88.287,3.58866021]
[1772472195716,11.31874724,88.349,88.289,3.58866021]
[1772472196524,11.31874724,88.349,88.297,3.58866021]
[1772472197009,39.61561534,88.349,88.297,3.58866021]
[1772472197726,39.61561534,88.349,88.299,3.59061244]
[1772472197914,11.31874724,88.349,88.299,3.59061244]
[1772472200030,8.22102552,88.34,88.301,3.59061244]
[1772472200408,39.67895116,88.349,88.293,11.32582937]
[1772472200409,8.28487326,88.33,88.293,11.32582937]
[1772472200626,8.28487326,88.33,88.294,3.59061244]
[1772472200627,0.06384774,88.329,88.294,3.59061244]
[1772472201128,0.06384774,88.338,88.294,3.59061244]
[1772472201338,8.22102552,88.33,88.294,3.59061244]
[1772472201962,8.22102552,88.33,88.267,56.64578024]
[1772472201963,8.22102552,88.33,88.296,3.59061244]
[1772472202233,19.54231225,88.33,88.296,3.59061244]
[1772472202831,19.60716627,88.33,88.296,3.59061244]
[1772472203023,0.06485402,88.329,88.296,3.59061244]
[1772472203208,8.22102552,88.32,88.296,3.59061244]
[1772472203738,8.22102552,88.32,88.244,1.13322152]
[1772472203739,8.28637402,88.32,88.283,3.59061244]
[1772472204116,11.32259196,88.319,88.285,3.59061244]
[1772472206135,11.32259196,88.319,88.287,3.59061244]
[1772472206337,0.06679814,88.299,88.268,3.59061244]
[1772472206543,8.22102552,88.31,88.27,3.59061244]
[1772472209042,8.22102552,88.32,88.272,3.59061244]
[1772472209827,11.32182281,88.325,88.272,3.59061244]
[1772472210037,8.22102552,88.32,88.272,3.59061244]
[1772472211947,8.22102552,88.33,88.274,3.59061244]
[1772472212329,8.22102552,88.33,88.276,3.59061244]
[1772472212538,8.29057648,88.34,88.276,3.59061244]
[1772472212845,8.22102552,88.33,88.276,3.59061244]
[1772472213549,8.29057648,88.34,88.276,3.59061244]
[1772472213747,8.22102552,88.35,88.287,3.59061244]
[1772472213950,0.06999149,88.348,88.289,3.59061244]
[1772472214730,11.31874724,88.349,88.289,3.59061244]
[1772472214945,11.31828481,88.353,88.297,3.59061244]
[1772472216835,28.29409715,88.358,88.299,3.59061244]
[1772472217444,28.36580077,88.358,88.299,3.59061244]
[1772472217934,0.07170362,88.357,88.301,3.59061244]
[1772472218447,0.07211943,88.329,88.291,3.59061244]
[1772472218758,0.07211943,88.319,88.282,3.59061244]
[1772472219335,8.21103129,88.32,88.282,3.59061244]
[1772472219651,0.07253046,88.33,88.282,3.59061244]
[1772472219851,0.07253046,88.339,88.282,3.59061244]
[1772472220038,39.69263029,88.339,88.284,3.59061244]
[1772472220238,0.07293678,88.338,88.284,3.59061244]
[1772472220555,11.32002852,88.339,88.286,3.59061244]
[1772472220736,11.32002852,88.339,88.288,3.59061244]
[1772472221957,0.07333842,88.338,88.288,3.59061244]
[1772472222153,0.28432314,88.352,88.29,3.59061244]
[1772472222357,8.21103129,88.35,88.292,3.59061244]
[1772472222547,36.50781072,88.35,88.292,3.59061244]
[1772472222854,36.58154618,88.35,88.292,3.59061244]
[1772472223056,8.28476675,88.35,88.292,3.59061244]
[1772472223238,11.3182348,88.353,88.296,3.59061244]
[1772472223836,0.07412793,88.352,88.296,3.59061244]
[1772472224449,0.07412793,88.352,88.289,96.27473409]
[1772472224450,8.21103129,88.35,88.298,3.59061244]
[1772472225245,11.31528921,88.376,88.306,3.59061244]
[1772472225450,11.31528921,88.376,88.317,3.59061244]
[1772472225642,0.0748994,88.369,88.317,3.59061244]
[1772472225958,8.21103129,88.35,88.317,3.59061244]
[1772472226363,0.07527851,88.349,88.317,3.59061244]
[1772472226563,0.07527851,88.348,88.318,11.32272017]
[1772472226867,0.07527851,88.339,88.314,11.3232122]
[1772472227366,8.21103129,88.32,88.28,3.58866021]
[1772472228163,8.28705499,88.33,88.28,3.58866021]
[1772472228545,8.21103129,88.33,88.282,3.58866021]
[1772472229580,11.32002852,88.339,88.286,3.58866021]
[1772472230376,0.0771097,88.329,88.286,3.58866021]
[1772472230667,8.21103129,88.33,88.288,3.58866021]
[1772472230850,8.21103129,88.34,88.288,3.58866021]
[1772472232470,0.07781308,88.328,88.291,11.32618273]
[1772472232763,0.07781308,88.328,88.291,14.91484294]
[1772472232962,0.07781308,88.332,88.292,3.58866021]
[1772472233369,8.21103129,88.33,88.292,3.58866021]
[1772472234471,11.3213101,88.329,88.293,11.32592617]
[1772472234772,11.3213101,88.329,88.294,3.58866021]
[1772472235574,0.07883812,88.328,88.294,3.58866021]
[1772472236548,8.21103129,88.3,88.269,14.91758485]
[1772472237770,11.32515657,88.299,88.269,14.91758485]
[1772472237973,11.32515657,88.299,88.27,3.58866021]
[1772472238471,0.07982826,88.298,88.265,11.32950996]
[1772472238652,0.07982826,88.298,88.266,3.58866021]
[1772472239653,0.07982826,88.298,88.265,11.32950996]
[1772472240153,11.32515657,88.299,88.263,3.58866021]
[1772472240360,11.32464418,88.303,88.263,3.58866021]
[1772472240563,11.32156645,88.327,88.269,3.58866021]
[1772472240768,39.62548257,88.327,88.269,3.58866021]
[1772472241267,39.7059521,88.327,88.269,3.58866021]
[1772472241470,34.00011333,88.488,88.241,175.65530759]
[1772472241471,0.08078466,88.349,88.287,3.58866021]
[1772472241666,0.08078466,88.349,88.286,0.28432314]
[1772472241667,0.08078466,88.349,88.289,3.58866021]
[1772472242248,39.61631491,88.348,88.291,3.58866021]
[1772472242449,39.69741108,88.348,88.291,3.58866021]
[1772472242672,0.08109617,88.347,88.291,3.58866021]
[1772472243048,11.31887535,88.348,88.299,3.58866021]
[1772472243377,11.31759433,88.358,88.299,3.58866021]
[1772472243573,11.31697976,88.363,88.305,3.58866021]
[1772472243755,11.31697976,88.363,88.309,3.58866021]
[1772472244647,0.08170849,88.362,88.309,3.58866021]
[1772472244873,0.08170849,88.359,88.311,3.58866021]
[1772472245566,8.21103129,88.35,88.311,3.58866021]
[1772472245869,0.08170849,88.359,88.311,3.58866021]
[1772472246567,8.21103129,88.36,88.311,3.58866021]
[1772472247367,39.61113185,88.359,88.313,3.58866021]
[1772472247779,0.08260084,88.358,88.313,3.58866021]
[1772472248775,8.21103129,88.32,88.288,3.58866021]
[1772472248951,130.15086181,88.359,88.288,3.58866021]
[1772472248952,8.21103129,88.33,88.288,3.58866021]
[1772472249156,8.21103129,88.35,88.288,3.58866021]
[1772472249354,39.62907187,88.319,88.288,3.58866021]
[1772472249758,39.71225067,88.319,88.285,11.32683079]
[1772472250576,39.71225067,88.319,88.279,3.58866021]
[1772472250784,0.0834628,88.309,88.276,11.32807322]
[1772472251089,8.21103129,88.34,88.276,11.32807322]
[1772472251090,8.21103129,88.32,88.277,3.58866021]
[1772472251300,8.21103129,88.34,88.279,3.58866021]
[1772472251589,39.62009983,88.339,88.281,3.58866021]
[1772472252462,8.21103129,88.33,88.281,3.58866021]
[1772472252658,0.08402107,88.319,88.281,3.58866021]
[1772472252861,8.21103129,88.31,88.281,3.58866021]
[1772472253186,0.08402107,88.299,88.242,3.58866021]